[Event "December 12 Early 2023"]
[Site "https://www.chess.com"]
[Date "2023.12.12"]
[Round "8"]
[White "Matinian, Nikita"]
[Black "Drygalov, Sergey"]
[Result "1-0"]
[Board "7"]
[TimeControl "180+1"]
[WhiteFideId "24129100"]
[BlackFideId "24171743"]
[WhiteElo "2769"]
[BlackElo "3014"]
[WhiteTeam "FID"]
[BlackTeam "RUS"]
[WhiteClock "0:00:10"]
[BlackClock "0:00:12"]

1. e4 {[%clk 0:03:00]}  c5 {[%clk 0:03:00]} 2. Nf3 {[%clk 0:03:01]}  d6 {[%clk 0:03:01]} 3. d4 {[%clk 0:03:02]}  cxd4 {[%clk 0:03:02]} 4. Nxd4 {[%clk 0:03:03]}  Nf6 {[%clk 0:03:02]} 5. Nc3 {[%clk 0:03:03]}  a6 {[%clk 0:03:03]} 6. h3 {[%clk 0:03:04]}  e5 {[%clk 0:03:03]} 7. Nb3 {[%clk 0:03:05]}  Be6 {[%clk 0:03:01]} 8. f4 {[%clk 0:03:04]}  b5 {[%clk 0:02:58]} 9. fxe5 {[%clk 0:02:40]}  dxe5 {[%clk 0:02:58]} 10. Qxd8+ {[%clk 0:02:40]}  Kxd8 {[%clk 0:02:58]} 11. Bg5 {[%clk 0:02:40]}  Nd7 {[%clk 0:02:48]} 12. a4 {[%clk 0:02:25]}  b4 {[%clk 0:02:43]} 13. Nd5 {[%clk 0:02:25]}  Kc8 {[%clk 0:02:43]} 14. Bxf6 {[%clk 0:02:04]}  gxf6 {[%clk 0:02:44]} 15. O-O-O {[%clk 0:02:04]}  h5 {[%clk 0:01:47]} 16. Bc4 {[%clk 0:01:28]}  Rg8 {[%clk 0:01:38]} 17. Rd2 {[%clk 0:01:20]}  Bh6 {[%clk 0:01:33]} 18. Ne7+ {[%clk 0:01:19]}  Kc7 {[%clk 0:01:34]} 19. Bxe6 {[%clk 0:01:08]}  fxe6 {[%clk 0:01:28]} 20. Nxg8 {[%clk 0:01:08]}  Rxg8 {[%clk 0:01:28]} 21. g4 {[%clk 0:00:43]}  Bxd2+ {[%clk 0:01:21]} 22. Kxd2 {[%clk 0:00:43]}  hxg4 {[%clk 0:01:21]} 23. hxg4 {[%clk 0:00:42]}  Rxg4 {[%clk 0:01:21]} 24. Rh7 {[%clk 0:00:42]}  Kd6 {[%clk 0:01:22]} 25. Kd3 {[%clk 0:00:40]}  f5 {[%clk 0:01:10]} 26. exf5 {[%clk 0:00:40]}  exf5 {[%clk 0:01:09]} 27. Rh6+ {[%clk 0:00:37]}  Kd5 {[%clk 0:01:10]} 28. Rxa6 {[%clk 0:00:37]}  Rg3+ {[%clk 0:01:09]} 29. Kd2 {[%clk 0:00:35]}  f4 {[%clk 0:01:07]} 30. Ra7 {[%clk 0:00:28]}  Nf6 {[%clk 0:01:04]} 31. Ra5+ {[%clk 0:00:18]}  Kd6 {[%clk 0:01:01]} 32. Ra6+ {[%clk 0:00:17]}  Ke7 {[%clk 0:01:00]} 33. Nc5 {[%clk 0:00:18]}  Rg5 {[%clk 0:00:44]} 34. a5 {[%clk 0:00:13]}  f3 {[%clk 0:00:32]} 35. Re6+ {[%clk 0:00:13]}  Kf7 {[%clk 0:00:15]} 36. Rxf6+ {[%clk 0:00:14]}  Kxf6 {[%clk 0:00:16]} 37. Ne4+ {[%clk 0:00:14]}  Kf5 {[%clk 0:00:14]} 38. Nxg5 {[%clk 0:00:15]}  Kxg5 {[%clk 0:00:14]} 39. a6 {[%clk 0:00:14]}  Kf4 {[%clk 0:00:12]} 40. a7 {[%clk 0:00:13]}  e4 {[%clk 0:00:13]} 41. a8=Q {[%clk 0:00:13]}  e3+ {[%clk 0:00:14]} 42. Kd3 {[%clk 0:00:13]}  e2 {[%clk 0:00:14]} 43. Qe4+ {[%clk 0:00:12]}  Kg3 {[%clk 0:00:14]} 44. Qxe2 {[%clk 0:00:07]}  fxe2 {[%clk 0:00:13]} 45. Kxe2 {[%clk 0:00:08]}  Kf4 {[%clk 0:00:13]} 46. Kd3 {[%clk 0:00:08]}  b3 {[%clk 0:00:13]} 47. c3 {[%clk 0:00:08]}  Ke5 {[%clk 0:00:14]} 48. Kc4 {[%clk 0:00:08]}  Kd6 {[%clk 0:00:15]} 49. Kxb3 {[%clk 0:00:09]}  Kc6 {[%clk 0:00:16]} 50. Kc4 {[%clk 0:00:09]}  Kb6 {[%clk 0:00:12]} 51. b4 {[%clk 0:00:10]} 1-0

[Event "December 12 Early 2023"]
[Site "https://www.chess.com"]
[Date "2023.12.12"]
[Round "8"]
[White "Tologon tegin, Semetei"]
[Black "Shankland, Sam"]
[Result "1/2-1/2"]
[Board "8"]
[TimeControl "180+1"]
[WhiteFideId "13800574"]
[BlackFideId "2004887"]
[WhiteElo "2663"]
[BlackElo "2949"]
[WhiteTeam "KGZ"]
[BlackTeam "USA"]
[WhiteClock "0:02:45"]
[BlackClock "0:02:23"]

1. d4 {[%clk 0:02:56]}  d5 {[%clk 0:02:59]} 2. Nc3 {[%clk 0:02:56]}  Nf6 {[%clk 0:02:58]} 3. Bf4 {[%clk 0:02:56]}  e6 {[%clk 0:02:57]} 4. Nb5 {[%clk 0:02:56]}  Na6 {[%clk 0:02:56]} 5. e3 {[%clk 0:02:56]}  Be7 {[%clk 0:02:56]} 6. Nf3 {[%clk 0:02:54]}  O-O {[%clk 0:02:55]} 7. h3 {[%clk 0:02:54]}  c6 {[%clk 0:02:54]} 8. Nc3 {[%clk 0:02:54]}  c5 {[%clk 0:02:54]} 9. a3 {[%clk 0:02:50]}  Nb8 {[%clk 0:02:46]} 10. Nb5 {[%clk 0:02:45]}  Nc6 {[%clk 0:02:32]} 11. Nc7 {[%clk 0:02:45]}  Rb8 {[%clk 0:02:31]} 12. Nb5 {[%clk 0:02:45]}  Ra8 {[%clk 0:02:29]} 13. Nc7 {[%clk 0:02:45]}  Rb8 {[%clk 0:02:22]} 14. Nb5 {[%clk 0:02:45]}  Ra8 {[%clk 0:02:23]} 1/2-1/2

[Event "December 12 Early 2023"]
[Site "https://www.chess.com"]
[Date "2023.12.12"]
[Round "8"]
[White "Aronian, Levon"]
[Black "Steinberg, Nitzan"]
[Result "1-0"]
[Board "9"]
[TimeControl "180+1"]
[WhiteFideId "13300474"]
[BlackFideId "2801795"]
[WhiteElo "3114"]
[BlackElo "2889"]
[WhiteTeam "USA"]
[BlackTeam "ISR"]
[WhiteClock "0:00:18"]
[BlackClock "0:00:02"]

1. e4 {[%clk 0:03:00]}  c5 {[%clk 0:02:59]} 2. Nf3 {[%clk 0:03:00]}  d6 {[%clk 0:02:59]} 3. c3 {[%clk 0:03:01]}  Nf6 {[%clk 0:02:59]} 4. Be2 {[%clk 0:03:01]}  g6 {[%clk 0:03:00]} 5. O-O {[%clk 0:03:02]}  Bg7 {[%clk 0:03:00]} 6. d3 {[%clk 0:03:02]}  O-O {[%clk 0:03:00]} 7. Be3 {[%clk 0:03:03]}  b6 {[%clk 0:02:54]} 8. Nbd2 {[%clk 0:03:03]}  Bb7 {[%clk 0:02:54]} 9. Qb1 {[%clk 0:03:04]}  e5 {[%clk 0:02:51]} 10. b4 {[%clk 0:03:01]}  Nbd7 {[%clk 0:02:46]} 11. bxc5 {[%clk 0:02:56]}  dxc5 {[%clk 0:02:34]} 12. a4 {[%clk 0:02:56]}  Ng4 {[%clk 0:02:30]} 13. Bg5 {[%clk 0:02:55]}  f6 {[%clk 0:02:18]} 14. Bh4 {[%clk 0:02:53]}  h5 {[%clk 0:02:19]} 15. h3 {[%clk 0:02:47]}  Nh6 {[%clk 0:02:19]} 16. Nc4 {[%clk 0:02:46]}  Nf7 {[%clk 0:02:14]} 17. Ne3 {[%clk 0:02:39]}  Bh6 {[%clk 0:02:06]} 18. Bd1 {[%clk 0:02:35]}  Kg7 {[%clk 0:02:01]} 19. Bb3 {[%clk 0:02:34]}  Nd6 {[%clk 0:01:54]} 20. Nd2 {[%clk 0:02:10]}  Bxe3 {[%clk 0:01:04]} 21. fxe3 {[%clk 0:02:10]}  Qe8 {[%clk 0:01:03]} 22. Nc4 {[%clk 0:02:04]}  Nxc4 {[%clk 0:01:01]} 23. Bxc4 {[%clk 0:02:04]}  Bc6 {[%clk 0:00:53]} 24. Ra2 {[%clk 0:02:01]}  a6 {[%clk 0:00:45]} 25. Qb3 {[%clk 0:01:07]}  Qe7 {[%clk 0:00:45]} 26. Raf2 {[%clk 0:00:53]}  Qd6 {[%clk 0:00:39]} 27. g4 {[%clk 0:00:36]}  hxg4 {[%clk 0:00:29]} 28. hxg4 {[%clk 0:00:36]}  b5 {[%clk 0:00:12]} 29. axb5 {[%clk 0:00:33]}  Rab8 {[%clk 0:00:12]} 30. g5 {[%clk 0:00:30]}  fxg5 {[%clk 0:00:07]} 31. Bxg5 {[%clk 0:00:26]}  axb5 {[%clk 0:00:04]} 32. Rf7+ {[%clk 0:00:26]}  Kh8 {[%clk 0:00:04]} 33. Qa2 {[%clk 0:00:18]}  Rxf7 {[%clk 0:00:03]} 34. Rxf7 {[%clk 0:00:18]}  bxc4 {[%clk 0:00:01]} 35. Qh2+ {[%clk 0:00:18]}  Kg8 {[%clk 0:00:02]} 36. Qh7# {[%clk 0:00:18]} 1-0

[Event "December 12 Early 2023"]
[Site "https://www.chess.com"]
[Date "2023.12.12"]
[Round "8"]
[White "Paravyan, David"]
[Black "Vakhlamov, Igor L."]
[Result "1-0"]
[Board "12"]
[TimeControl "180+1"]
[WhiteFideId "4194985"]
[BlackFideId "24126748"]
[WhiteElo "3023"]
[BlackElo "2844"]
[WhiteTeam "FID"]
[BlackTeam "RUS"]
[WhiteClock "0:01:40"]
[BlackClock "0:00:00"]

1. e4 {[%clk 0:03:00]}  c5 {[%clk 0:02:46]} 2. Nf3 {[%clk 0:03:01]}  e6 {[%clk 0:02:47]} 3. d4 {[%clk 0:03:00]}  cxd4 {[%clk 0:02:48]} 4. Nxd4 {[%clk 0:03:01]}  Nf6 {[%clk 0:02:49]} 5. Nc3 {[%clk 0:03:00]}  Nc6 {[%clk 0:02:49]} 6. Ndb5 {[%clk 0:02:57]}  Bc5 {[%clk 0:02:49]} 7. Nd6+ {[%clk 0:02:54]}  Ke7 {[%clk 0:02:49]} 8. Bf4 {[%clk 0:02:54]}  e5 {[%clk 0:02:48]} 9. Nf5+ {[%clk 0:02:55]}  Kf8 {[%clk 0:02:48]} 10. Bg5 {[%clk 0:02:55]}  Bb4 {[%clk 0:02:45]} 11. Ne3 {[%clk 0:02:43]}  Qa5 {[%clk 0:02:22]} 12. Bd3 {[%clk 0:02:39]}  Bxc3+ {[%clk 0:02:17]} 13. bxc3 {[%clk 0:02:40]}  Qxc3+ {[%clk 0:02:18]} 14. Kf1 {[%clk 0:02:41]}  d6 {[%clk 0:02:07]} 15. Rb1 {[%clk 0:02:40]}  Nd4 {[%clk 0:01:50]} 16. Nc4 {[%clk 0:02:00]}  Nxe4 {[%clk 0:01:40]} 17. Bc1 {[%clk 0:01:56]}  Be6 {[%clk 0:00:27]} 18. Bb2 {[%clk 0:01:55]}  Bxc4 {[%clk 0:00:14]} 19. Bxc3 {[%clk 0:01:53]}  Nxc3 {[%clk 0:00:15]} 20. Qe1 {[%clk 0:01:49]}  Bxd3+ {[%clk 0:00:04]} 21. cxd3 {[%clk 0:01:50]}  Nxb1 {[%clk 0:00:05]} 22. Qxb1 {[%clk 0:01:51]}  Rb8 {[%clk 0:00:05]} 23. f4 {[%clk 0:01:46]}  f6 {[%clk 0:00:04]} 24. Qb4 {[%clk 0:01:46]}  Ke7 {[%clk 0:00:04]} 25. Kf2 {[%clk 0:01:43]}  Rhc8 {[%clk 0:00:04]} 26. fxe5 {[%clk 0:01:40]}  fxe5 {[%clk 0:00:04]} 27. Re1 {[%clk 0:01:40]}  Rf8+ {[%clk 0:00:01]} 28. Kg1 {[%clk 0:01:40]}  Rf7 {[%clk 0:00:02]} 29. Qxd4 {[%clk 0:01:40]}  Rbf8 {[%clk 0:00:01]} 30. Qxa7 {[%clk 0:01:39]}  Rf1+ {[%clk 0:00:01]} 31. Rxf1 {[%clk 0:01:39]}  Rxf1+ {[%clk 0:00:00]} 32. Kxf1 {[%clk 0:01:40]} 1-0

[Event "December 12 Early 2023"]
[Site "https://www.chess.com"]
[Date "2023.12.12"]
[Round "8"]
[White "Pakleza, Zbigniew"]
[Black "Sychev, Klementy"]
[Result "0-1"]
[Board "15"]
[TimeControl "180+1"]
[WhiteFideId "1119290"]
[BlackFideId "4114060"]
[WhiteElo "2719"]
[BlackElo "2939"]
[WhiteTeam "POL"]
[BlackTeam "FID"]
[WhiteClock "0:00:10"]
[BlackClock "0:00:11"]

1. d4 {[%clk 0:03:00]}  g6 {[%clk 0:02:58]} 2. Nf3 {[%clk 0:03:01]}  Bg7 {[%clk 0:02:58]} 3. Bf4 {[%clk 0:03:01]}  d6 {[%clk 0:02:59]} 4. e3 {[%clk 0:03:02]}  Nd7 {[%clk 0:02:59]} 5. h3 {[%clk 0:03:02]}  e5 {[%clk 0:03:00]} 6. Bh2 {[%clk 0:03:03]}  Nh6 {[%clk 0:02:59]} 7. Be2 {[%clk 0:03:02]}  O-O {[%clk 0:02:52]} 8. O-O {[%clk 0:03:02]}  f5 {[%clk 0:02:51]} 9. c4 {[%clk 0:03:02]}  Kh8 {[%clk 0:02:49]} 10. Nc3 {[%clk 0:03:02]}  g5 {[%clk 0:02:48]} 11. dxe5 {[%clk 0:03:00]}  dxe5 {[%clk 0:02:46]} 12. Nd2 {[%clk 0:02:35]}  c6 {[%clk 0:02:26]} 13. e4 {[%clk 0:02:28]}  f4 {[%clk 0:02:23]} 14. b4 {[%clk 0:02:23]}  Nf6 {[%clk 0:02:20]} 15. c5 {[%clk 0:01:59]}  Qe8 {[%clk 0:02:12]} 16. f3 {[%clk 0:01:53]}  Qg6 {[%clk 0:01:42]} 17. Nc4 {[%clk 0:01:48]}  Nf7 {[%clk 0:01:40]} 18. Nd6 {[%clk 0:01:13]}  h5 {[%clk 0:01:37]} 19. Nxf7+ {[%clk 0:01:05]}  Rxf7 {[%clk 0:01:31]} 20. Qd6 {[%clk 0:01:00]}  Rd7 {[%clk 0:00:34]} 21. Qe6 {[%clk 0:00:45]}  Rd2 {[%clk 0:00:30]} 22. Qc4 {[%clk 0:00:33]}  g4 {[%clk 0:00:26]} 23. Kh1 {[%clk 0:00:33]}  Bd7 {[%clk 0:00:16]} 24. Rad1 {[%clk 0:00:31]}  Rxd1 {[%clk 0:00:16]} 25. Bxd1 {[%clk 0:00:29]}  Rg8 {[%clk 0:00:17]} 26. Qe2 {[%clk 0:00:28]}  Bf8 {[%clk 0:00:15]} 27. Bb3 {[%clk 0:00:24]}  Rg7 {[%clk 0:00:14]} 28. fxg4 {[%clk 0:00:14]}  hxg4 {[%clk 0:00:14]} 29. g3 {[%clk 0:00:15]}  gxh3 {[%clk 0:00:13]} 30. Rg1 {[%clk 0:00:14]}  Bg4 {[%clk 0:00:11]} 31. Qe1 {[%clk 0:00:10]}  Bf3+ {[%clk 0:00:11]} 0-1

[Event "December 12 Early 2023"]
[Site "https://www.chess.com"]
[Date "2023.12.12"]
[Round "8"]
[White "Poormosavi, Seyed Kian"]
[Black "Pranav, V"]
[Result "0-1"]
[Board "16"]
[TimeControl "180+1"]
[WhiteFideId "12585807"]
[BlackFideId "25060783"]
[WhiteElo "2726"]
[BlackElo "3050"]
[WhiteTeam "IRI"]
[BlackTeam "IND"]
[WhiteClock "0:00:07"]
[BlackClock "0:00:04"]

1. Nf3 {[%clk 0:02:59]}  d5 {[%clk 0:02:59]} 2. g3 {[%clk 0:02:59]}  c5 {[%clk 0:02:59]} 3. Bg2 {[%clk 0:02:53]}  Nc6 {[%clk 0:02:59]} 4. d4 {[%clk 0:02:53]}  e6 {[%clk 0:02:59]} 5. O-O {[%clk 0:02:54]}  cxd4 {[%clk 0:02:59]} 6. Nxd4 {[%clk 0:02:53]}  Bc5 {[%clk 0:02:59]} 7. Nxc6 {[%clk 0:02:45]}  bxc6 {[%clk 0:03:00]} 8. c4 {[%clk 0:02:46]}  Nf6 {[%clk 0:02:58]} 9. Nc3 {[%clk 0:02:43]}  O-O {[%clk 0:02:57]} 10. b3 {[%clk 0:02:41]}  Ba6 {[%clk 0:02:56]} 11. Na4 {[%clk 0:02:37]}  Bd6 {[%clk 0:02:53]} 12. Qc2 {[%clk 0:02:30]}  Rc8 {[%clk 0:02:52]} 13. Rd1 {[%clk 0:02:22]}  Qe7 {[%clk 0:02:49]} 14. Bb2 {[%clk 0:02:13]}  Rfd8 {[%clk 0:02:40]} 15. Rac1 {[%clk 0:02:13]}  e5 {[%clk 0:02:30]} 16. e3 {[%clk 0:02:11]}  h5 {[%clk 0:02:21]} 17. Qf5 {[%clk 0:01:40]}  g6 {[%clk 0:01:59]} 18. Qg5 {[%clk 0:01:38]}  Qe6 {[%clk 0:01:59]} 19. Qh4 {[%clk 0:01:33]}  Ng4 {[%clk 0:01:54]} 20. cxd5 {[%clk 0:01:28]}  cxd5 {[%clk 0:01:48]} 21. Rxc8 {[%clk 0:00:51]}  Rxc8 {[%clk 0:01:47]} 22. h3 {[%clk 0:00:51]}  Nf6 {[%clk 0:01:11]} 23. Nc3 {[%clk 0:00:50]}  d4 {[%clk 0:00:58]} 24. exd4 {[%clk 0:00:48]}  Be7 {[%clk 0:00:34]} 25. dxe5 {[%clk 0:00:29]}  Ng4 {[%clk 0:00:33]} 26. Bd5 {[%clk 0:00:21]}  Qb6 {[%clk 0:00:32]} 27. hxg4 {[%clk 0:00:20]}  Bxh4 {[%clk 0:00:32]} 28. gxh4 {[%clk 0:00:21]}  Bb7 {[%clk 0:00:20]} 29. gxh5 {[%clk 0:00:19]}  Rd8 {[%clk 0:00:16]} 30. hxg6 {[%clk 0:00:18]}  Qxg6+ {[%clk 0:00:16]} 31. Kh2 {[%clk 0:00:17]}  Qh5 {[%clk 0:00:04]} 32. Bxf7+ {[%clk 0:00:09]}  Kxf7 {[%clk 0:00:04]} 33. Rxd8 {[%clk 0:00:07]}  Qxh4+ {[%clk 0:00:04]} 0-1

[Event "December 12 Early 2023"]
[Site "https://www.chess.com"]
[Date "2023.12.12"]
[Round "8"]
[White "Wagh Suyog"]
[Black "Zemlyanskii, Ivan"]
[Result "0-1"]
[Board "17"]
[TimeControl "180+1"]
[WhiteFideId "25071688"]
[BlackFideId "24249971"]
[WhiteElo "2793"]
[BlackElo "3029"]
[WhiteTeam "IND"]
[BlackTeam "RUS"]
[WhiteClock "0:00:06"]
[BlackClock "0:00:14"]

1. e4 {[%clk 0:03:00]}  c5 {[%clk 0:03:00]} 2. Nf3 {[%clk 0:03:00]}  e6 {[%clk 0:03:00]} 3. d4 {[%clk 0:02:57]}  cxd4 {[%clk 0:03:01]} 4. Nxd4 {[%clk 0:02:57]}  Nf6 {[%clk 0:03:01]} 5. Bd3 {[%clk 0:02:57]}  Nc6 {[%clk 0:03:01]} 6. Nxc6 {[%clk 0:02:56]}  bxc6 {[%clk 0:03:02]} 7. O-O {[%clk 0:02:56]}  d5 {[%clk 0:03:01]} 8. Nc3 {[%clk 0:02:57]}  Be7 {[%clk 0:02:48]} 9. b3 {[%clk 0:02:57]}  O-O {[%clk 0:02:48]} 10. Bb2 {[%clk 0:02:57]}  a5 {[%clk 0:02:44]} 11. Re1 {[%clk 0:02:57]}  Ba6 {[%clk 0:02:42]} 12. Rc1 {[%clk 0:02:52]}  Qb6 {[%clk 0:02:26]} 13. Na4 {[%clk 0:02:50]}  Qa7 {[%clk 0:02:19]} 14. c4 {[%clk 0:02:48]}  Rfd8 {[%clk 0:02:16]} 15. e5 {[%clk 0:02:27]}  Nd7 {[%clk 0:01:42]} 16. cxd5 {[%clk 0:01:42]}  cxd5 {[%clk 0:01:43]} 17. Bd4 {[%clk 0:01:40]}  Qb7 {[%clk 0:01:37]} 18. Bxa6 {[%clk 0:01:36]}  Rxa6 {[%clk 0:01:25]} 19. Qg4 {[%clk 0:01:27]}  Qb4 {[%clk 0:01:16]} 20. Qe2 {[%clk 0:01:21]}  Raa8 {[%clk 0:01:05]} 21. Bc3 {[%clk 0:01:21]}  Qb7 {[%clk 0:01:03]} 22. Qd2 {[%clk 0:01:21]}  Qa6 {[%clk 0:00:54]} 23. f4 {[%clk 0:01:17]}  g6 {[%clk 0:00:51]} 24. Rc2 {[%clk 0:01:17]}  Rdc8 {[%clk 0:00:46]} 25. Rec1 {[%clk 0:01:16]}  Ba3 {[%clk 0:00:34]} 26. Bb2 {[%clk 0:01:09]}  Bb4 {[%clk 0:00:34]} 27. Qf2 {[%clk 0:01:03]}  Rxc2 {[%clk 0:00:31]} 28. Qxc2 {[%clk 0:01:04]}  Nb6 {[%clk 0:00:27]} 29. Nxb6 {[%clk 0:00:44]}  Qxb6+ {[%clk 0:00:27]} 30. Kh1 {[%clk 0:00:39]}  Qe3 {[%clk 0:00:26]} 31. Rf1 {[%clk 0:00:36]}  Rd8 {[%clk 0:00:14]} 32. Qc7 {[%clk 0:00:29]}  Rf8 {[%clk 0:00:13]} 33. a3 {[%clk 0:00:20]}  Qe2 {[%clk 0:00:12]} 34. Qc1 {[%clk 0:00:15]}  Bd2 {[%clk 0:00:10]} 35. Qb1 {[%clk 0:00:13]}  Rb8 {[%clk 0:00:08]} 36. Bd4 {[%clk 0:00:13]}  Rxb3 {[%clk 0:00:08]} 37. Qd1 {[%clk 0:00:07]}  Qxd1 {[%clk 0:00:08]} 38. Rxd1 {[%clk 0:00:08]}  Bxf4 {[%clk 0:00:09]} 39. a4 {[%clk 0:00:07]}  Be3 {[%clk 0:00:09]} 40. Bxe3 {[%clk 0:00:04]}  Rxe3 {[%clk 0:00:10]} 41. Rb1 {[%clk 0:00:04]}  Rxe5 {[%clk 0:00:09]} 42. Kg1 {[%clk 0:00:05]}  Re4 {[%clk 0:00:10]} 43. Ra1 {[%clk 0:00:04]}  Kg7 {[%clk 0:00:09]} 44. Kf2 {[%clk 0:00:05]}  g5 {[%clk 0:00:10]} 45. Kf3 {[%clk 0:00:05]}  h5 {[%clk 0:00:10]} 46. Ra3 {[%clk 0:00:05]}  Kg6 {[%clk 0:00:10]} 47. h3 {[%clk 0:00:05]}  f5 {[%clk 0:00:11]} 48. g3 {[%clk 0:00:05]}  h4 {[%clk 0:00:10]} 49. gxh4 {[%clk 0:00:05]}  Rxh4 {[%clk 0:00:11]} 50. Kg3 {[%clk 0:00:05]}  Kf6 {[%clk 0:00:11]} 51. Ra1 {[%clk 0:00:05]}  Rb4 {[%clk 0:00:10]} 52. Ra2 {[%clk 0:00:05]}  e5 {[%clk 0:00:10]} 53. Ra1 {[%clk 0:00:06]}  f4+ {[%clk 0:00:10]} 54. Kg4 {[%clk 0:00:06]}  Rb3 {[%clk 0:00:11]} 55. Rc1 {[%clk 0:00:05]}  Rg3+ {[%clk 0:00:11]} 56. Kh5 {[%clk 0:00:06]}  Rxh3+ {[%clk 0:00:12]} 57. Kg4 {[%clk 0:00:06]}  Rg3+ {[%clk 0:00:13]} 58. Kh5 {[%clk 0:00:07]}  Kf5 {[%clk 0:00:14]} 59. Rc8 {[%clk 0:00:06]}  Rh3# {[%clk 0:00:14]} 0-1

[Event "December 12 Early 2023"]
[Site "https://www.chess.com"]
[Date "2023.12.12"]
[Round "8"]
[White "Alexandre, Anne Shopie Elizabeth"]
[Black "Terry, Renato"]
[Result "1-0"]
[Board "19"]
[TimeControl "180+1"]
[WhiteFideId "11902418"]
[BlackFideId "3803457"]
[WhiteElo "2790"]
[BlackElo "2965"]
[WhiteTeam "HAI"]
[BlackTeam "PER"]
[WhiteClock "0:00:50"]
[BlackClock "0:00:00"]

1. e4 {[%clk 0:03:00]}  e6 {[%clk 0:03:00]} 2. d4 {[%clk 0:03:01]}  d5 {[%clk 0:03:00]} 3. Nc3 {[%clk 0:03:02]}  Nf6 {[%clk 0:02:59]} 4. e5 {[%clk 0:03:01]}  Nfd7 {[%clk 0:02:59]} 5. f4 {[%clk 0:03:02]}  c5 {[%clk 0:03:00]} 6. Nf3 {[%clk 0:03:02]}  Nc6 {[%clk 0:03:00]} 7. Be3 {[%clk 0:03:02]}  Be7 {[%clk 0:03:01]} 8. Qd2 {[%clk 0:03:01]}  O-O {[%clk 0:03:02]} 9. Nd1 {[%clk 0:02:59]}  f6 {[%clk 0:02:58]} 10. c3 {[%clk 0:02:51]}  cxd4 {[%clk 0:02:56]} 11. cxd4 {[%clk 0:02:51]}  fxe5 {[%clk 0:02:56]} 12. fxe5 {[%clk 0:02:52]}  Nb6 {[%clk 0:02:30]} 13. Rc1 {[%clk 0:02:51]}  Bb4 {[%clk 0:02:24]} 14. Nc3 {[%clk 0:02:51]}  Na5 {[%clk 0:02:25]} 15. b3 {[%clk 0:02:50]}  Bd7 {[%clk 0:02:11]} 16. Bd3 {[%clk 0:02:50]}  Rc8 {[%clk 0:02:11]} 17. O-O {[%clk 0:02:42]}  Qe8 {[%clk 0:02:04]} 18. Qb2 {[%clk 0:02:37]}  Qh5 {[%clk 0:01:53]} 19. Ne2 {[%clk 0:02:29]}  Be7 {[%clk 0:01:46]} 20. Rxc8 {[%clk 0:02:23]}  Nxc8 {[%clk 0:01:44]} 21. Nf4 {[%clk 0:02:24]}  Qe8 {[%clk 0:01:26]} 22. Qc2 {[%clk 0:02:21]}  g6 {[%clk 0:01:26]} 23. h4 {[%clk 0:02:16]}  Nc6 {[%clk 0:01:25]} 24. Qd2 {[%clk 0:02:10]}  Qd8 {[%clk 0:01:14]} 25. g3 {[%clk 0:01:45]}  Qa5 {[%clk 0:00:59]} 26. Qg2 {[%clk 0:01:35]}  Nb4 {[%clk 0:00:50]} 27. Bb1 {[%clk 0:01:34]}  Qa6 {[%clk 0:00:44]} 28. Qd2 {[%clk 0:01:29]}  Nc6 {[%clk 0:00:25]} 29. Rf2 {[%clk 0:01:26]}  Qa5 {[%clk 0:00:25]} 30. Qc2 {[%clk 0:01:23]}  Nb4 {[%clk 0:00:25]} 31. Qc1 {[%clk 0:01:21]}  Qd8 {[%clk 0:00:21]} 32. Kg2 {[%clk 0:01:20]}  a5 {[%clk 0:00:20]} 33. a3 {[%clk 0:01:17]}  Nc6 {[%clk 0:00:20]} 34. Qc2 {[%clk 0:01:17]}  Qe8 {[%clk 0:00:20]} 35. h5 {[%clk 0:01:14]}  Rf5 {[%clk 0:00:20]} 36. hxg6 {[%clk 0:01:14]}  hxg6 {[%clk 0:00:21]} 37. g4 {[%clk 0:01:13]}  Rxf4 {[%clk 0:00:21]} 38. Bxf4 {[%clk 0:01:14]}  Kg7 {[%clk 0:00:22]} 39. Bc1 {[%clk 0:01:11]}  N8a7 {[%clk 0:00:19]} 40. a4 {[%clk 0:01:07]}  Nb4 {[%clk 0:00:10]} 41. Qd2 {[%clk 0:01:07]}  Qh8 {[%clk 0:00:10]} 42. Qf4 {[%clk 0:01:05]}  Be8 {[%clk 0:00:07]} 43. Kg1 {[%clk 0:00:58]}  Nac6 {[%clk 0:00:01]} 44. Rh2 {[%clk 0:00:57]}  g5 {[%clk 0:00:02]} 45. Rxh8 {[%clk 0:00:55]}  gxf4 {[%clk 0:00:02]} 46. Rxe8 {[%clk 0:00:55]}  Kf7 {[%clk 0:00:03]} 47. Rc8 {[%clk 0:00:54]}  Na6 {[%clk 0:00:02]} 48. g5 {[%clk 0:00:54]}  Bb4 {[%clk 0:00:02]} 49. g6+ {[%clk 0:00:53]}  Kg7 {[%clk 0:00:02]} 50. Bxf4 {[%clk 0:00:52]}  Bc3 {[%clk 0:00:02]} 51. Be3 {[%clk 0:00:51]}  Bb4 {[%clk 0:00:00]} 52. Ng5 {[%clk 0:00:50]} 1-0